bitfinex-derivatives/quotes_SOLF0:USTF0_20230103
["timestamp","ask_amount","ask_price","bid_price","bid_amount"]
[1672757643559,5.0,12.2,12.19,0.06131382]
[1672757645983,57.04,12.208,12.19,0.06131382]
[1672757645984,12.23,12.204,12.19,0.06131382]
[1672757646194,5.0,12.203,12.193,0.07122617]
[1672757646401,5.0,12.203,12.189,5.0]
[1672757646617,5.0,12.203,12.194,0.06022663]
[1672757648294,4.85690741,12.203,12.194,0.06022663]
[1672757648510,12.27,12.204,12.194,0.06022663]
[1672757651128,17.27,12.211,12.194,0.06022663]
[1672757651341,12.27,12.211,12.198,0.06518384]
[1672757653129,12.27,12.208,12.199,50.0]
[1672757653442,5.0,12.207,12.199,0.06270898]
[1672757654278,12.27,12.205,12.199,0.06270898]
[1672757654492,5.0,12.204,12.199,0.06270898]
[1672757654704,12.22,12.202,12.199,0.06270898]
[1672757655018,12.22,12.202,12.196,0.06708741]
[1672757655220,5.0,12.201,12.195,0.06768024]
[1672757655436,12.27,12.206,12.188,51.3887]
[1672757655649,5.0,12.207,12.191,0.06711147]
[1672757655859,5.0,12.207,12.195,0.06173169]
[1672757656071,5.0,12.208,12.195,0.06173169]
[1672757656280,12.21,12.209,12.195,0.06173169]
[1672757656597,5.0,12.211,12.198,0.06842442]
[1672757656809,5.0,12.211,12.2,0.06893692]
[1672757658905,5.0,12.212,12.2,0.06893692]
[1672757659116,5.0,12.213,12.2,0.06893692]
[1672757659117,5.0,12.217,12.2,0.06893692]
[1672757659333,5.0,12.218,12.204,0.06005903]
[1672757659544,5.0,12.218,12.207,0.06171145]
[1672757659757,12.27,12.216,12.207,0.06171145]
[1672757660062,12.19,12.213,12.207,0.06171145]
[1672757660277,12.27,12.21,12.192,5.0]
[1672757660487,12.27,12.207,12.193,45.2839]
[1672757660692,12.27,12.207,12.194,5.0]
[1672757661325,0.06637883,12.205,12.196,0.06793592]
[1672757661953,12.27,12.203,12.196,0.06793592]
[1672757662376,12.27,12.2,12.196,0.06793592]
[1672757662587,5.0,12.199,12.196,0.06793592]
[1672757662792,5.0,12.199,12.188,5.0]
[1672757663011,0.06761507,12.198,12.188,5.0]
[1672757663217,0.06761507,12.198,12.19,50.0]
[1672757663536,0.06761507,12.198,12.191,5.0]
[1672757664376,0.06761507,12.198,12.19,50.0]
[1672757664796,0.06761507,12.198,12.189,0.07007209]
[1672757665425,0.06761507,12.198,12.19,50.0]
[1672757665636,0.06761507,12.198,12.191,5.0]
[1672757666162,0.06761507,12.198,12.19,55.0]
[1672757667002,0.06761507,12.198,12.191,5.0]
[1672757669313,0.06761507,12.198,12.19,50.0]
[1672757669742,0.06761507,12.198,12.189,0.07007209]
[1672757670050,12.33761507,12.198,12.189,0.07007209]
[1672757670682,5.0,12.197,12.189,0.07007209]
[1672757671309,5.0,12.197,12.191,50.0]
[1672757672049,5.0,12.197,12.189,0.07007209]
[1672757672575,4.81145315,12.197,12.189,0.07007209]
[1672757673101,12.33761507,12.198,12.189,0.07007209]
[1672757673835,0.06761507,12.198,12.189,0.07007209]
[1672757674780,0.06761507,12.198,12.189,47.97057209]
[1672757674991,0.06761507,12.198,12.19,5.0]
[1672757675202,0.06761507,12.198,12.19,52.9005]
[1672757675729,0.06761507,12.198,12.191,47.9005]
[1672757675940,17.27,12.213,12.192,5.0]
[1672757676255,5.0,12.212,12.193,45.8535]
[1672757676465,5.0,12.212,12.194,5.0]
[1672757676665,5.0,12.212,12.196,5.0]
[1672757676877,5.0,12.212,12.199,0.0692957]
[1672757677515,12.23,12.21,12.201,50.0]
[1672757677720,5.0,12.209,12.201,50.06695442]
[1672757678773,5.0,12.209,12.201,0.06695442]
[1672757679821,12.27,12.206,12.201,0.06695442]
[1672757680036,0.06287777,12.204,12.191,44.3993]
[1672757680559,0.06287777,12.204,12.191,94.3993]
[1672757680768,12.22,12.203,12.191,44.3993]
[1672757680975,5.0,12.202,12.191,44.3993]
[1672757681185,0.07029162,12.201,12.192,0.06453361]
[1672757681392,0.07029162,12.201,12.192,5.06453361]
[1672757682869,0.07029162,12.201,12.193,45.7494]
[1672757683078,0.07029162,12.201,12.194,5.0]
[1672757683924,0.07029162,12.201,12.195,45.7494]
[1672757684123,0.07029162,12.201,12.196,5.0]
[1672757684447,5.0,12.21,12.196,50.7494]
[1672757684656,17.21,12.214,12.197,45.7494]
[1672757684867,17.21,12.214,12.198,50.7494]
[1672757685074,17.21,12.214,12.199,5.0]
[1672757685284,17.21,12.214,12.201,0.06946528]
[1672757685494,17.21,12.214,12.201,50.06946528]
[1672757686127,17.21,12.214,12.202,5.0]
[1672757686441,12.21,12.214,12.202,5.0]
[1672757686654,12.21,12.214,12.204,0.06075128]
[1672757686856,61.27,12.24,12.207,12.27]
[1672757687066,107.5187,12.24,12.21,0.06559558]
[1672757687278,46.2487,12.239,12.215,0.06047469]
[1672757687489,12.23,12.228,12.218,0.06958654]
[1672757687906,5.0,12.227,12.218,0.06958654]
[1672757688856,12.23,12.228,12.218,0.06958654]
[1672757692110,5.0,12.227,12.218,0.06958654]
[1672757692328,5.0,12.235,12.218,0.06392963]
[1672757692535,5.0,12.235,12.222,0.06632106]
[1672757692953,17.27,12.235,12.222,0.06632106]
[1672757693901,5.0,12.225,12.21,5.0]
[1672757694111,5.0,12.225,12.212,47.1538]
[1672757694322,5.0,12.225,12.213,5.0]
[1672757694529,12.27,12.223,12.213,5.0]
[1672757694742,5.0,12.222,12.213,5.0]
[1672757694954,5.06082531,12.222,12.213,5.06651055]
[1672757695372,0.06082531,12.222,12.213,5.06651055]
[1672757695798,0.06082531,12.222,12.214,47.6771]
[1672757696008,0.06082531,12.222,12.215,5.0]
[1672757696212,12.27,12.22,12.213,0.06651055]
[1672757696425,5.0,12.219,12.213,0.06651055]
[1672757699791,12.27,12.22,12.213,0.06651055]
[1672757701576,5.0,12.219,12.213,0.06651055]
[1672757701786,12.27,12.217,12.213,0.06651055]
[1672757702411,0.06716832,12.219,12.213,0.06651055]
[1672757703463,17.23,12.229,12.213,0.06651055]
[1672757703464,17.23,12.229,12.214,5.0]
[1672757703679,17.23,12.229,12.214,53.5232]
[1672757704203,17.23,12.229,12.214,5.0]
[1672757704413,17.23,12.229,12.216,0.0671041]
[1672757705043,12.27,12.224,12.216,0.0671041]
[1672757705362,5.0,12.223,12.216,0.0671041]
[1672757706511,12.27,12.224,12.216,0.0671041]
[1672757706723,12.23,12.229,12.216,0.0671041]
[1672757707458,12.19,12.233,12.216,12.3371041]
[1672757707671,2875.6223416,12.372,12.213,54.0994]
[1672757707672,43.7992,12.262,12.232,50.0]
[1672757707875,12.22,12.246,12.235,0.06100223]
[1672757708093,12.22,12.246,12.236,0.06489842]
[1672757708299,5.0,12.245,12.236,0.06489842]
[1672757709032,12.27,12.243,12.236,0.06489842]
[1672757709244,5.0,12.242,12.236,0.06489842]
[1672757711453,12.27,12.243,12.236,0.06489842]
[1672757711665,12.19,12.239,12.236,0.06489842]
[1672757711982,5.0,12.238,12.214,12.27]
[1672757712292,12.27,12.235,12.214,12.27]
[1672757712504,5.0,12.234,12.214,12.27]
[1672757712915,0.06187971,12.231,12.224,50.0]
[1672757713135,0.06187971,12.231,12.225,5.0]
[1672757713762,1.8,12.242,12.228,12.27]
[1672757714082,1.8,12.242,12.229,50.6961]
[1672757714398,1.8,12.242,12.23,5.0]
[1672757714602,1.8,12.242,12.23,50.6961]
[1672757714812,1.8,12.242,12.232,0.06349676]
[1672757715756,17.19,12.248,12.232,0.06349676]
[1672757715971,17.19,12.248,12.235,0.06376268]
[1672757716594,5.0,12.248,12.235,0.06376268]
[1672757716804,12.27,12.255,12.244,50.0]
[1672757717025,5.0,12.254,12.245,5.07104924]
[1672757717231,5.0,12.254,12.245,5.06964947]
[1672757717442,5.0,12.254,12.245,0.06964947]
[1672757717655,12.23,12.252,12.245,0.06964947]
[1672757717868,5.0,12.251,12.245,0.06964947]
[1672757718178,5.0,12.248,12.245,0.06964947]
[1672757718497,5.0,12.248,12.242,0.06288544]
[1672757718700,5.0,12.248,12.234,50.0]
[1672757718701,5.0,12.248,12.241,0.06907024]
[1672757719020,12.23,12.243,12.229,5.0]
[1672757719334,5.0,12.242,12.229,5.0]
[1672757719753,12.27,12.232,12.209,5.0]
[1672757719965,5.0,12.231,12.219,45.7045]
[1672757720174,0.06381398,12.23,12.224,50.0]
[1672757720384,0.06381398,12.23,12.225,5.0]
[1672757721221,5.0,12.24,12.225,5.0]
[1672757721431,5.0,12.242,12.225,50.7045]
[1672757721640,5.0,12.242,12.226,45.7045]
[1672757721855,5.0,12.242,12.227,5.0]
[1672757722063,5.0,12.242,12.227,50.9108]
[1672757722380,5.0,12.242,12.23,0.06488434]
[1672757722593,17.22,12.246,12.23,0.06488434]
[1672757722802,17.22,12.246,12.233,0.06127857]
[1672757723116,17.22,12.246,12.234,50.0]
[1672757723541,5.0,12.247,12.236,0.06174642]
[1672757725325,5.0,12.245,12.236,0.06174642]
[1672757725849,12.23,12.242,12.236,0.06174642]
[1672757726375,5.0,12.241,12.236,0.06174642]
[1672757727005,5.0,12.241,12.228,5.0]
[1672757727218,5.0,12.241,12.227,5.0]
[1672757727529,12.22,12.239,12.225,50.0]
[1672757727740,12.27,12.236,12.225,50.0]
[1672757727946,0.06656879,12.235,12.226,5.06815288]
[1672757728162,5.06656879,12.235,12.226,5.06815288]
[1672757728372,5.06656879,12.235,12.226,0.06815288]
[1672757728576,12.27,12.229,12.226,0.06815288]
[1672757728791,12.27,12.229,12.225,50.0]
[1672757728998,12.33839571,12.232,12.225,50.0]
[1672757729527,5.0,12.247,12.223,0.06314338]
[1672757729528,12.27,12.242,12.226,5.0]
[1672757729733,5.0,12.241,12.226,5.0]
[1672757729948,12.23,12.239,12.235,50.0]
[1672757730157,12.27,12.236,12.226,5.0]
[1672757730363,5.0,12.235,12.226,5.0]
[1672757730574,5.0,12.235,12.226,0.06184223]
[1672757731729,5.0,12.238,12.226,0.06184223]
[1672757731940,5.0,12.238,12.226,5.06184223]
[1672757732365,12.23,12.239,12.226,5.06184223]
[1672757732789,12.23,12.239,12.226,48.73924223]
[1672757733518,12.22,12.242,12.227,5.0]
[1672757733729,5.0,12.244,12.23,0.0631149]
[1672757734046,5.0,12.244,12.235,50.0]
[1672757734247,5.0,12.244,12.235,50.06019334]
[1672757734887,5.0,12.244,12.235,0.06019334]
[1672757735093,12.27,12.242,12.235,0.06019334]
[1672757735303,5.0,12.241,12.235,0.06019334]
[1672757737508,12.27,12.242,12.235,0.06019334]
[1672757738657,12.23,12.239,12.235,0.06019334]
[1672757738871,12.27,12.236,12.235,0.06019334]
[1672757739079,12.27,12.236,12.231,0.06166659]
[1672757739288,12.27,12.236,12.229,0.0619968]
[1672757739499,12.27,12.236,12.228,0.06576977]
[1672757742234,12.27,12.229,12.228,0.06576977]
[1672757742443,12.27,12.229,12.224,0.06933888]
[1672757742657,12.27,12.229,12.222,0.07018588]
[1672757742863,12.1689874,12.229,12.222,0.07018588]
[1672757743073,12.27,12.231,12.222,0.07018588]
[1672757743284,12.27,12.231,12.222,46.70188588]
[1672757743813,12.27,12.231,12.222,0.07018588]
[1672757744026,12.27,12.231,12.225,50.0]
[1672757744240,12.27,12.228,12.222,0.07018588]
[1672757744449,12.27,12.224,12.222,0.07018588]
[1672757744660,12.27,12.224,12.219,0.07089763]
[1672757744867,12.27,12.224,12.217,0.06088709]
[1672757745920,12.27,12.227,12.217,0.06088709]
[1672757746659,5.0,12.233,12.217,0.06088709]
[1672757746869,5.0,12.233,12.221,0.06153401]
[1672757747175,17.23,12.234,12.221,0.06153401]
[1672757747385,5.0,12.23,12.208,5.0]
[1672757747597,61.33,12.229,12.21,44.5247]
[1672757747803,12.27,12.219,12.211,44.5247]
[1672757748225,5.0,12.228,12.212,5.0]
[1672757748439,0.06153401,12.224,12.216,0.06092384]
[1672757750018,12.27,12.223,12.216,0.06092384]
[1672757750229,12.27,12.22,12.216,0.06092384]
[1672757751480,5.0,12.222,12.216,0.06092384]
[1672757752114,12.27,12.219,12.216,0.06092384]
[1672757752325,12.27,12.219,12.213,0.06244163]
[1672757752534,12.27,12.219,12.212,0.06570489]
[1672757754643,12.27,12.216,12.212,0.06570489]
[1672757755060,12.22,12.213,12.212,0.06570489]
[1672757755272,12.22,12.213,12.208,0.06377236]
[1672757755483,12.23,12.209,12.206,0.06051096]
[1672757755694,12.23,12.209,12.203,0.06171618]
[1672757755904,12.23,12.209,12.202,0.06834751]
[1672757759158,0.06080232,12.21,12.202,0.06834751]
[1672757760101,12.27,12.218,12.21,0.08505157]
[1672757760947,12.27,12.218,12.21,0.14782611]
[1672757761476,12.27,12.221,12.21,0.14782611]
[1672757761691,5.0,12.22,12.21,0.14782611]
[1672757763048,12.19,12.218,12.21,0.14782611]
[1672757763266,12.27,12.211,12.21,0.14782611]
[1672757763577,12.27,12.211,12.21,0.08505157]
[1672757765784,12.21,12.213,12.21,0.08505157]
[1672757767256,12.27,12.216,12.21,0.08505157]
[1672757767464,5.0,12.215,12.21,0.08505157]
[1672757768412,12.23,12.213,12.21,0.08505157]
[1672757772719,12.12732086,12.213,12.21,0.08505157]
[1672757773560,12.12732086,12.213,12.207,0.06379118]
[1672757773874,61.11,12.209,12.207,0.06379118]
[1672757774087,61.11,12.209,12.204,0.069649]
[1672757774399,12.22,12.204,12.202,0.06942189]
[1672757774614,12.22,12.204,12.199,0.06310868]
[1672757774816,12.22,12.204,12.197,0.06807391]
[1672757775660,12.23,12.207,12.197,0.06807391]
[1672757780289,5.0,12.206,12.197,0.06807391]
[1672757780603,12.27,12.204,12.197,0.06807391]
[1672757781018,12.27,12.201,12.197,0.06807391]
[1672757781226,5.0,12.203,12.197,0.06807391]
[1672757782491,12.23,12.201,12.197,0.06807391]
[1672757782707,5.0,12.2,12.197,0.06807391]
[1672757782917,5.0,12.2,12.194,0.06527362]
[1672757783236,5.0,12.2,12.193,0.06451724]
[1672757785335,12.23,12.198,12.193,0.06451724]
[1672757786069,12.27,12.201,12.193,0.06451724]
[1672757786488,5.0,12.203,12.193,0.06451724]
[1672757788487,12.27,12.204,12.193,0.06451724]
[1672757789542,12.27,12.201,12.193,0.06451724]
[1672757790801,12.19,12.197,12.193,0.06451724]
[1672757791852,5.0,12.203,12.193,0.06451724]
[1672757792163,12.22,12.2,12.193,0.06451724]
[1672757793322,5.0,12.199,12.193,0.06451724]
[1672757793946,12.27,12.196,12.193,0.06451724]
[1672757794157,12.27,12.196,12.19,0.06037439]
[1672757795108,5.0,12.199,12.19,0.06037439]
[1672757795949,17.27,12.203,12.19,0.06037439]
[1672757796157,17.27,12.203,12.193,0.06612798]
[1672757796368,12.27,12.203,12.193,0.06612798]
[1672757797832,12.27,12.2,12.193,0.06612798]
[1672757798470,5.0,12.199,12.193,0.06612798]
[1672757798779,5.0,12.202,12.193,0.06612798]
[1672757798995,17.27,12.206,12.193,0.06612798]
[1672757799524,0.06151392,12.203,12.191,0.44596121]
[1672757799938,12.27,12.2,12.191,0.44596121]
[1672757800143,5.0,12.199,12.191,0.44596121]
[1672757800570,1.8,12.202,12.191,0.44596121]
[1672757800571,1.8,12.202,12.191,46.48174091]
[1672757800783,1.8,12.202,12.192,5.0]
[1672757801098,1.8,12.202,12.193,45.9651]
[1672757801308,1.8,12.202,12.195,5.0]
[1672757801725,1.8,12.202,12.195,4.87302267]
[1672757802672,1.8,12.202,12.194,46.02550419]
[1672757803200,5.0,12.206,12.194,46.02550419]
[1672757803404,5.0,12.206,12.195,44.8333]
[1672757803614,5.0,12.206,12.196,5.0]
[1672757803832,5.0,12.206,12.197,0.06236254]
[1672757804358,12.22,12.209,12.197,0.06236254]
[1672757804674,12.22,12.209,12.197,44.89566254]
[1672757809709,12.27,12.203,12.197,0.06236254]
[1672757809919,12.22,12.2,12.197,0.06236254]
[1672757810241,5.0,12.199,12.194,0.06890746]
[1672757810556,5.0,12.199,12.192,0.06862492]
[1672757810763,5.0,12.199,12.191,0.06995107]
[1672757812767,12.27,12.197,12.191,0.06995107]
[1672757813083,5.0,12.196,12.191,0.06995107]
[1672757813396,12.21,12.193,12.191,0.06995107]
[1672757813711,12.21,12.193,12.188,0.0615529]
[1672757813924,12.21,12.193,12.186,0.07133738]
[1672757814341,12.27,12.19,12.186,0.07133738]
[1672757814656,12.27,12.187,12.186,0.07133738]
[1672757814861,12.27,12.187,12.182,0.06622867]
[1672757815073,12.08534456,12.187,12.18,0.06197998]
[1672757816342,5.0,12.189,12.18,0.06197998]
[1672757821073,12.27,12.19,12.18,0.06197998]
[1672757821273,5.0,12.193,12.18,5.06197998]
[1672757821274,12.27,12.193,12.18,5.06197998]
[1672757821488,5.0,12.194,12.18,52.19927998]
[1672757821699,5.0,12.194,12.183,0.06761224]
[1672757821910,5.0,12.194,12.183,52.20491224]
[1672757822122,5.0,12.196,12.183,52.20491224]
[1672757822332,5.0,12.196,12.184,52.1373]
[1672757822539,5.0,12.199,12.186,0.063006]
[1672757822743,5.0,12.199,12.186,52.200306]
[1672757823171,5.0,12.199,12.187,5.0]
[1672757823488,5.0,12.199,12.187,53.0661]
[1672757823699,5.0,12.199,12.189,0.06903418]
[1672757823909,5.0,12.204,12.189,0.06903418]
[1672757824116,5.0,12.207,12.192,0.06389271]
[1672757824329,17.27,12.21,12.192,0.06389271]
[1672757824330,5.0,12.21,12.195,0.06697828]
[1672757824540,5.0,12.21,12.198,0.06712498]
[1672757825166,17.27,12.21,12.198,0.06712498]
[1672757826856,5.0,12.21,12.198,0.06712498]
[1672757827065,4.7916713,12.21,12.198,47.57192498]
[1672757827278,4.7916713,12.21,12.199,5.0]
[1672757827595,4.7916713,12.21,12.2,47.5048]
[1672757827806,17.0616713,12.21,12.201,5.06009418]
[1672757828120,12.27,12.207,12.201,0.07039206]
[1672757831062,18.1616713,12.21,12.201,0.07039206]
[1672757831795,17.0616713,12.21,12.201,0.07039206]
[1672757832633,1.2,12.207,12.201,0.07039206]
[1672757834215,13.47,12.207,12.201,0.07039206]
[1672757834736,1.2,12.207,12.201,0.07039206]
[1672757835571,17.0216713,12.21,12.201,0.07039206]
[1672757835781,49.08,12.198,12.173,17.27]
[1672757836100,61.49,12.197,12.184,44.4545]
[1672757836309,5.0,12.197,12.184,44.4545]
[1672757836517,5.0,12.196,12.185,5.0]
[1672757836943,0.06309298,12.195,12.186,0.06812258]
[1672757837153,12.27,12.192,12.186,0.06812258]
[1672757837362,12.27,12.189,12.186,0.06812258]
[1672757837571,12.27,12.189,12.183,0.06512561]
[1672757837782,12.27,12.189,12.182,0.06838782]
[1672757837992,5.0,12.188,12.181,0.06958279]
[1672757838202,5.0,12.188,12.18,0.07108636]
[1672757838519,5.06719749,12.188,12.18,0.06045207]
[1672757840095,6.96719749,12.188,12.18,0.06045207]
[1672757840307,1.96719749,12.188,12.18,0.06045207]
[1672757843041,0.06719749,12.188,12.18,0.06045207]
[1672757843249,0.06719749,12.188,12.18,46.34585207]
[1672757843460,0.06719749,12.188,12.181,46.2854]
[1672757843979,0.06719749,12.188,12.182,46.2854]
[1672757844191,0.06719749,12.188,12.18,0.06045207]
[1672757845454,0.06719749,12.188,12.18,49.06835207]
[1672757846292,0.06719749,12.188,12.181,49.0079]
[1672757846498,0.06719749,12.188,12.182,5.0]
[1672757846709,0.06719749,12.188,12.183,49.0079]
[1672757849341,5.0,12.192,12.188,0.10343178]
[1672757849869,1.59656822,12.188,12.183,49.0079]
[1672757851866,6.822e-05,12.188,12.183,49.0079]
[1672757852076,6.822e-05,12.188,12.184,5.0]
[1672757853447,6.822e-05,12.188,12.185,12.23]
[1672757853649,5.0,12.201,12.186,5.0]
[1672757853862,5.0,12.201,12.189,0.06519627]
[1672757854283,17.27,12.205,12.189,0.06519627]
[1672757854597,17.27,12.208,12.192,0.06078566]
[1672757854807,17.27,12.208,12.195,0.0636183]
[1672757857224,12.23,12.204,12.195,0.0636183]
[1672757857439,12.22,12.201,12.195,0.0636183]
[1672757857749,5.0,12.197,12.195,0.0036183]
[1672757857965,5.0,12.197,12.188,47.6019]
[1672757858695,5.06319458,12.197,12.188,47.66506731]
[1672757861320,1.3,12.196,12.188,47.66506731]
[1672757863320,1.3,12.196,12.188,0.06316731]
[1672757863529,12.27,12.194,12.188,0.06316731]
[1672757863743,12.27,12.19,12.188,0.06316731]
[1672757863950,5.0,12.189,12.185,0.06409964]
[1672757864264,5.0,12.189,12.177,48.196]
[1672757864265,5.0,12.189,12.183,0.06519001]
[1672757864472,5.0,12.189,12.182,0.07147252]
[1672757864684,5.0,12.189,12.181,0.06719327]
[1672757864999,1.9,12.188,12.181,0.06719327]
[1672757865626,14.13,12.188,12.181,0.06719327]
[1672757866463,0.17258201,12.181,12.178,48.196]
[1672757868998,0.17258201,12.181,12.175,0.06412107]
[1672757876139,21.48258201,12.181,12.175,0.06412107]
[1672757877822,5.17258201,12.181,12.175,0.06412107]
[1672757878032,0.17258201,12.181,12.175,0.06412107]
[1672757880450,0.08684392,12.181,12.175,0.06412107]
[1672757880661,16.37,12.179,12.175,0.06412107]
[1672757881601,0.15756774,12.181,12.175,0.06412107]
[1672757882022,1.9,12.18,12.175,16.27412107]
[1672757882228,1.9,12.18,12.176,48.4855]
[1672757885699,0.15756774,12.181,12.176,48.4855]
[1672757886437,5.0,12.189,12.177,5.0]
[1672757887389,5.0,12.189,12.179,0.06532272]
[1672757889806,16.37,12.186,12.179,0.06532272]
[1672757890007,16.38,12.183,12.179,0.00532272]
[1672757891586,16.28,12.181,12.179,0.00532272]
[1672757891802,16.28,12.181,12.176,0.06365879]
[1672757892116,16.28,12.181,12.174,0.06368484]
[1672757892327,16.28,12.181,12.173,0.06836319]
[1672757892533,5.0,12.18,12.173,0.06836319]
[1672757892740,16.24,12.178,12.173,0.06836319]
[1672757893165,16.25,12.176,12.173,0.06836319]
[1672757893380,81.9,12.174,12.151,50.0]
[1672757893580,66.61,12.173,12.146,52.2862]
[1672757893794,16.3,12.155,12.147,48.8824]
[1672757894106,49.06044935,12.166,12.148,5.0]
[1672757894317,61.65,12.165,12.148,5.0]
[1672757894525,16.38,12.154,12.153,0.00482198]
[1672757894741,16.38,12.154,12.141,50.0]
[1672757895367,5.0,12.164,12.151,50.0]
[1672757895578,16.38,12.168,12.153,16.26]
[1672757895785,0.06839889,12.165,12.156,0.06784857]
[1672757896002,0.06839889,12.165,12.158,16.27]
[1672757896323,16.37,12.174,12.159,5.0]
[1672757896527,5.0,12.176,12.163,16.33]
[1672757896841,16.3,12.177,12.16,48.8824]
[1672757897054,21.24,12.18,12.166,16.38]
[1672757897267,0.06165111,12.177,12.169,0.06204175]
[1672757898000,16.38,12.17,12.169,0.06204175]
[1672757898219,16.38,12.17,12.153,45.9158]
[1672757898421,16.38,12.164,12.154,50.9158]
[1672757899159,4.85127889,12.169,12.155,0.07054016]
[1672757899475,21.38,12.175,12.16,16.26]
[1672757899681,16.44660089,12.175,12.163,16.37]
[1672757900213,0.07138124,12.173,12.165,0.06979534]
[1672757900943,0.07138124,12.173,12.166,16.32]
[1672757901158,1.7,12.176,12.168,16.38]
[1672757901364,1.7,12.176,12.171,16.38]
[1672757901578,1.7,12.176,12.169,5.0]
[1672757901789,1.7,12.176,12.164,5.0]
[1672757901999,16.37,12.174,12.158,52.1922]
[1672757902211,0.06974366,12.17,12.162,0.0630499]
[1672757902423,0.06974366,12.17,12.163,50.0]
[1672757903050,0.06974366,12.17,12.162,0.0630499]
[1672757903258,16.24,12.168,12.162,0.0630499]
[1672757903464,16.25,12.164,12.162,0.0630499]
[1672757903675,16.38,12.163,12.159,47.25981723]
[1672757903888,16.38,12.163,12.159,0.06761723]
[1672757904622,16.31,12.164,12.159,0.06761723]
[1672757905356,0.069348,12.167,12.159,0.06761723]
[1672757905782,16.31,12.16,12.159,0.06761723]
[1672757905993,16.31,12.16,12.155,0.06669]
[1672757906203,16.43,12.155,12.153,0.06583503]
[1672757906415,16.43,12.155,12.145,5.0]
[1672757906416,16.43,12.155,12.15,0.06843684]
[1672757906627,16.36,12.151,12.148,0.06744435]
[1672757906942,16.28,12.149,12.145,0.06715725]
[1672757907154,16.43,12.146,12.143,0.06437495]
[1672757907363,16.43,12.146,12.14,0.06380695]
[1672757909364,0.06699288,12.149,12.14,0.06380695]
[1672757910521,16.43,12.154,12.141,5.0]
[1672757910936,16.3,12.151,12.141,5.0]
[1672757911357,16.3,12.151,12.142,0.06464578]
[1672757911564,16.43,12.146,12.142,0.06464578]
[1672757912302,16.28,12.149,12.142,0.06464578]
[1672757913360,16.43,12.147,12.142,0.06464578]
[1672757913781,16.43,12.143,12.142,0.00464578]
[1672757913993,16.43,12.143,12.137,57.14285714]
[1672757914621,5.0,12.153,12.137,57.14285714]
[1672757914622,16.28,12.146,12.137,57.14285714]
[1672757914828,16.47929686,12.144,12.137,57.14285714]
[1672757915040,16.41,12.144,12.137,57.14285714]
[1672757915251,16.3,12.141,12.137,57.14285714]
[1672757915460,5.0,12.143,12.137,57.14285714]
[1672757915778,16.3,12.138,12.136,0.00340894]
[1672757915986,16.3,12.138,12.125,49.2376]
[1672757916511,16.28,12.139,12.126,5.0]
[1672757916722,16.28,12.139,12.126,50.4879]
[1672757916933,0.06342528,12.137,12.128,0.06435096]
[1672757917143,0.06342528,12.137,12.129,16.43]
[1672757917348,0.06342528,12.137,12.13,45.4879]
[1672757918091,0.00342528,12.137,12.132,16.43]
[1672757918292,0.00342528,12.137,12.133,52.6105]
[1672757918506,0.00342528,12.137,12.134,47.6105]
[1672757918718,16.43,12.15,12.135,16.43]
[1672757918930,16.43,12.15,12.135,64.0405]
[1672757919139,0.06315263,12.147,12.138,0.06207932]
[1672757919343,16.49315263,12.147,12.138,0.06207932]
[1672757919766,16.43,12.144,12.138,0.06207932]
[1672757920191,0.06315263,12.147,12.138,0.06207932]